fUSD/lending_fUSD_20240614
["ID","MTS","AMOUNT","RATE_DAILY","PERIOD"]
[329473778,1718382860888,-521.38,0.00027945,3]
[329473779,1718382860926,-500.0,0.00027945,3]
[329473780,1718382860937,-500.0,0.00027945,3]
[329473781,1718382860949,-500.0,0.00027945,3]
[329473782,1718382860965,-500.0,0.00027945,3]
[329473783,1718382860982,-618.42,0.00027945,3]
[329473784,1718382860995,-500.0,0.00027945,3]
[329473785,1718382861011,-500.0,0.00027945,3]
[329473786,1718382861048,-500.0,0.00027945,3]
[329473787,1718382861078,-640.05,0.00027945,3]
[329473788,1718382861093,-590.79,0.00027945,3]
[329473789,1718382861124,-500.0,0.00027945,3]
[329473790,1718382861157,-500.0,0.00027945,3]
[329473791,1718382861175,-899.12,0.00027945,3]
[329473792,1718382861197,-619.45,0.00027945,3]
[329473793,1718382861213,-511.68,0.00027945,3]
[329473794,1718382861297,-500.0,0.00027945,3]
[329473795,1718382861336,-501.34,0.00027945,3]
[329473796,1718382861347,-500.0,0.00027945,3]
[329473797,1718382861363,-548.11,0.00027945,3]
[329473798,1718382861374,-540.93863959,0.00027945,3]
[329473799,1718382861386,-763.77,0.00027945,3]
[329473800,1718382861400,-500.0,0.00027945,3]
[329473801,1718382861436,-500.0,0.00027945,3]
[329473802,1718382861492,-500.0,0.00027945,3]
[329473803,1718382861506,-512.15,0.00027945,3]
[329473804,1718382861530,-500.0,0.00027945,3]
[329473805,1718382861572,-611.46,0.00027945,3]
[329473806,1718382861584,-573.96,0.00027945,3]
[329473807,1718382861595,-831.61,0.00027945,3]
[329473808,1718382861607,-662.73,0.00027945,3]
[329473809,1718382861619,-500.0,0.00027945,3]
[329473810,1718382861647,-500.0,0.00027945,3]
[329473811,1718382861660,-500.0,0.00027945,3]
[329473812,1718382861689,-568.32,0.00027945,3]
[329473813,1718382861700,-697.2,0.00027945,3]
[329473814,1718382861718,-889.26,0.00027945,3]
[329473815,1718382861728,-326.50260383,0.00027945,3]
[329473816,1718382861752,-356.66222911,0.00027945,3]
[329473817,1718382861764,-585.92,0.00027945,3]
[329473818,1718382861776,-510.01,0.00027945,3]
[329473819,1718382861800,-612.61,0.00027945,3]
[329473820,1718382861824,-1011.12,0.00027945,3]
[329473821,1718382861836,-500.0,0.00027945,3]
[329473822,1718382861847,-500.0,0.00027945,3]
[329473823,1718382861859,-717.84,0.00027945,3]
[329473824,1718382861886,-574.18,0.00027945,3]
[329473825,1718382861913,-1073.14,0.00027945,3]
[329473826,1718382861924,-813.3,0.00027945,3]
[329473827,1718382861936,-679.7,0.00027945,3]
[329473828,1718382861947,-589.82,0.00027945,3]
[329473829,1718382861966,-875.23,0.00027945,3]
[329473830,1718382861977,-555.05,0.00027945,7]
[329473831,1718382861988,-617.39,0.00027945,3]
[329473832,1718382862001,-652.05,0.00027945,3]
[329473833,1718382862012,-675.91,0.00027945,3]
[329473834,1718382862034,-627.05,0.00027945,3]
[329473835,1718382862076,-655.54,0.00027945,3]
[329473836,1718382862093,-1343.73,0.00027945,3]
[329473837,1718382862121,-2215.06,0.00027945,3]
[329473838,1718382862132,-500.0,0.00027945,3]
[329473839,1718382862148,-723.48,0.00027945,3]
[329473840,1718382862160,-606.95830903,0.00027945,3]
[329473841,1718382862192,-1901.93,0.00027945,3]
[329473842,1718382862206,-247.17,0.00027945,3]
[329473843,1718382862224,-1219.21,0.00027945,3]
[329473844,1718382862238,-598.03,0.00027945,3]
[329473845,1718382862250,-854.03,0.00027945,3]
[329473846,1718382862262,-664.58,0.00027945,3]
[329473847,1718382862275,-500.0,0.00027945,3]
[329473848,1718382862286,-854.39,0.00027945,3]
[329473849,1718382862307,-729.5,0.00027945,3]
[329473850,1718382862321,-331.92,0.00027945,3]
[329473851,1718382862343,-625.4,0.00027945,3]
[329473852,1718382862370,-636.02,0.00027945,3]
[329473853,1718382862417,-601.31,0.00027945,3]
[329473854,1718382862443,-500.0,0.00027945,3]
[329473855,1718382862457,-507.25,0.00027945,3]
[329473856,1718382862505,-666.51,0.00027945,3]
[329473857,1718382862525,-627.2,0.00027945,3]
[329473858,1718382862557,-500.0,0.00027945,3]
[329473859,1718382862612,-782.35,0.00027945,3]
[329473860,1718382862646,-2579.99,0.00027945,3]
[329473861,1718382862671,-500.0,0.00027945,3]
[329473862,1718382862688,-500.0,0.00027945,3]
[329473863,1718382862714,-633.7,0.00027945,3]
[329473864,1718382862730,-500.0,0.00027945,3]
[329473865,1718382862762,-2409.52,0.00027945,3]
[329473866,1718382862809,-500.0,0.00027945,3]
[329473867,1718382862828,-955.12,0.00027945,3]
[329473868,1718382862842,-718.69,0.00027945,3]
[329473869,1718382862860,-545.48,0.00027945,3]
[329473870,1718382862889,-676.49,0.00027945,3]
[329473871,1718382862923,-1205.04,0.00027945,3]
[329473872,1718382862942,-500.0,0.00027945,3]
[329473873,1718382863000,-500.0,0.00027945,3]
[329473874,1718382863024,-500.0,0.00027945,3]
[329473875,1718382863087,-2513.5,0.00027945,3]
[329473876,1718382863116,-500.0,0.00027945,3]
[329473877,1718382863168,-500.0,0.00027945,3]
[329473878,1718382863204,-500.0,0.00027945,3]
[329473879,1718382863265,-500.0,0.00027945,3]
[329473880,1718382863293,-719.42,0.00027945,3]
[329473881,1718382863326,-3991.97,0.00027945,3]
[329473882,1718382863352,-512.76300807,0.00027945,3]
[329473883,1718382863371,-3357.78,0.00027945,3]
[329473884,1718382863402,-1455.39,0.00027945,3]
[329473885,1718382863440,-2695.33,0.00027945,3]
[329473886,1718382863468,-587.38,0.00027945,3]
[329473887,1718382863490,-3621.35,0.00027945,3]
[329473888,1718382863506,-505.02,0.00027945,3]
[329473889,1718382863521,-12900.66,0.00027945,3]
[329473890,1718382863564,-2226.1,0.00027945,3]
[329473891,1718382863578,-704.82,0.00027945,3]
[329473892,1718382863629,-1468.02,0.00027945,3]
[329473893,1718382863643,-773.5,0.00027949,2]
[329473894,1718382863682,-154.75879082,0.00027968,2]
[329473895,1718382863695,-500.0,0.00027985,10]
[329473896,1718382863720,-150.0,0.00027998,7]
[329473897,1718382863764,-500.0,0.00028,3]
[329473898,1718382863789,-11973.1194834,0.00028,3]
[329473899,1718382863804,-275.38392239,0.00028,7]
[329473900,1718382863841,-2000.0,0.00028,5]
[329473901,1718382863863,-83152.27,0.00028,5]
[329473902,1718382863879,-11165.63102484,0.00028,2]
[329473903,1718382863899,-1217800.08,0.00028,5]
[329473904,1718382863934,-225.05965732,0.00028,2]
[329473905,1718382863948,-469.26225557,0.00028,2]
[329473906,1718382863974,-169.31188898,0.00028,2]
[329473907,1718382864014,-1205.15866329,0.00028,2]
[329473908,1718382864050,-620.88234974,0.00028,2]
[329473909,1718382864068,-29675.24495377,0.00028,14]
[329473910,1718382864080,-2119.61,0.00028,15]
[329473911,1718382864118,-300.0,0.00028,2]
[329473912,1718382864137,-1477.13,0.00028,2]
[329473913,1718382864155,-1571.91,0.00028,2]
[329473914,1718382864179,-600.44268396,0.00028,2]
[329473915,1718382864200,-200.0,0.00028,10]
[329473916,1718382864250,-154.29927158,0.00028002,2]
[329473917,1718382864292,-200.0,0.0002802,2]
[329473918,1718382864313,-202.0,0.0002802,2]
[329473919,1718382864344,-201.0,0.0002802,2]
[329473920,1718382864371,-221.0,0.0002802,2]
[329473921,1718382864402,-202.0,0.0002802,2]
[329473922,1718382864442,-215.0,0.0002802,2]
[329473923,1718382864486,-1673.5,0.00028036,2]
[329473924,1718382864500,-272.80263991,0.00028055,30]
[329473925,1718382864573,-151.99268138,0.00028067,2]
[329473926,1718382864617,-371.42320115,0.0002807,2]
[329473927,1718382864652,-154.75879082,0.00028087,2]
[329473928,1718382864668,-158.40117863,0.00028102,2]
[329473929,1718382864704,-154.75879082,0.00028103,2]
[329473930,1718382864726,-1395.34919464,0.00028106,7]
[329473931,1718382864752,-150.0,0.00028114,7]
[329473932,1718382864775,-673.41541736,0.00028117,2]
[329473933,1718382864789,-673.41541736,0.00028126,2]
[329473934,1718382864817,-150.0,0.00028148,7]
[329473935,1718382864861,-156.8900021,0.00028151,2]
[329473936,1718382864898,-272.80263991,0.00028164,30]
[329473937,1718382864914,-166.64490567,0.00028191,7]
[329473938,1718382864946,-2593.42866723,0.00028194,2]
[329473939,1718382864966,-150.0,0.00028212,7]
[329473940,1718382864982,-886.24,0.00028218,3]
[329473941,1718382865003,-826.82,0.00028218,3]
[329473942,1718382865037,-394.08067267,0.00028219,3]
[329473943,1718382865051,-500.0,0.00028219,3]
[329473944,1718382865065,-500.0,0.00028219,3]
[329473945,1718382865079,-435.29254683,0.00028219,3]
[329473946,1718382865101,-193.80281113,0.00028219,3]
[329473947,1718382865113,-647.49,0.00028219,3]
[329473948,1718382865131,-500.0,0.00028219,3]
[329473949,1718382865148,-741.65,0.00028219,3]
[329473950,1718382865193,-1039.58,0.00028219,3]
[329473951,1718382865210,-500.0,0.00028219,3]
[329473952,1718382865229,-500.0,0.00028219,3]
[329473953,1718382865244,-606.88,0.00028219,3]
[329473954,1718382865274,-673.4,0.00028219,3]
[329473955,1718382865327,-593.08,0.00028219,3]
[329473956,1718382865345,-669.21,0.00028219,3]
[329473957,1718382865382,-736.96,0.00028219,3]
[329473958,1718382865399,-500.0,0.00028219,3]
[329473959,1718382865454,-507.96,0.00028219,3]
[329473960,1718382865467,-621.81286802,0.00028219,3]
[329473961,1718382865494,-670.88,0.00028219,3]
[329473962,1718382865521,-574.95,0.00028219,3]
[329473963,1718382865559,-500.0,0.00028219,3]
[329473964,1718382865584,-1734.14,0.00028219,3]
[329473965,1718382865625,-500.0,0.00028219,3]
[329473966,1718382865651,-500.0,0.00028219,3]
[329473967,1718382865688,-673.58,0.00028219,3]
[329473968,1718382865708,-633.38,0.00028219,3]
[329473969,1718382865732,-1004.01,0.00028219,3]
[329473970,1718382865788,-597.68,0.00028219,3]
[329473971,1718382865823,-733.92,0.00028219,3]
[329473972,1718382865839,-500.0,0.00028219,3]
[329473973,1718382865857,-510.37,0.00028219,3]
[329473974,1718382865881,-500.0,0.00028219,3]
[329473975,1718382865921,-521.38,0.00028219,3]
[329473976,1718382865966,-500.0,0.00028219,3]
[329473977,1718382866000,-500.0,0.00028219,3]
[329473978,1718382866028,-500.0,0.00028219,3]
[329473979,1718382866049,-500.0,0.00028219,3]
[329473980,1718382866066,-618.42,0.00028219,3]
[329473981,1718382866108,-500.0,0.00028219,3]
[329473982,1718382866120,-500.0,0.00028219,3]
[329473983,1718382866151,-500.0,0.00028219,3]
[329473984,1718382866215,-640.05,0.00028219,3]
[329473985,1718382866253,-590.79,0.00028219,3]
[329473986,1718382866291,-500.0,0.00028219,3]
[329473987,1718382866357,-339.6488411,0.00028219,3]
[329473988,1718382866386,-899.12,0.00028219,3]
[329473989,1718382866416,-619.45,0.00028219,3]
[329473990,1718382866436,-511.68,0.00028219,3]
[329473991,1718382866464,-500.0,0.00028219,3]
[329473992,1718382866488,-501.34,0.00028219,3]
[329473993,1718382866520,-500.0,0.00028219,3]
[329473994,1718382866560,-548.11,0.00028219,3]
[329473995,1718382866575,-763.77,0.00028219,3]
[329473996,1718382866628,-500.0,0.00028219,3]
[329473997,1718382866641,-500.0,0.00028219,3]
[329473998,1718382866658,-470.9202673,0.00028219,3]
[329473999,1718382866671,-512.15,0.00028219,3]
[329474000,1718382866689,-500.0,0.00028219,3]
[329474001,1718382866707,-611.46,0.00028219,3]
[329474002,1718382866729,-573.96,0.00028219,3]
[329474003,1718382866775,-831.61,0.00028219,3]
[329474004,1718382866809,-662.73,0.00028219,3]
[329474005,1718382866836,-500.0,0.00028219,3]
[329474006,1718382866863,-500.0,0.00028219,3]
[329474007,1718382866883,-500.0,0.00028219,3]
[329474008,1718382866918,-568.32,0.00028219,3]
[329474009,1718382866929,-697.2,0.00028219,3]
[329474010,1718382867002,-889.26,0.00028219,3]
[329474011,1718382867083,-585.92,0.00028219,3]
[329474012,1718382867130,-510.01,0.00028219,3]
[329474013,1718382867162,-612.61,0.00028219,3]
[329474014,1718382867187,-1011.12,0.00028219,3]
[329474015,1718382867220,-500.0,0.00028219,3]
[329474016,1718382867252,-500.0,0.00028219,3]
[329474017,1718382867283,-717.84,0.00028219,3]
[329474018,1718382867315,-574.18,0.00028219,3]
[329474019,1718382867338,-1073.14,0.00028219,3]
[329474020,1718382867364,-813.3,0.00028219,3]
[329474021,1718382867393,-679.7,0.00028219,3]
[329474022,1718382867421,-589.82,0.00028219,3]
[329474023,1718382867433,-875.23,0.00028219,3]
[329474024,1718382867529,-555.05,0.00028219,7]
[329474025,1718382867546,-617.39,0.00028219,3]
[329474026,1718382867558,-652.05,0.00028219,3]
[329474027,1718382867582,-675.91,0.00028219,3]
[329474028,1718382867601,-627.05,0.00028219,3]
[329474029,1718382867631,-655.54,0.00028219,3]
[329474030,1718382867656,-1343.73,0.00028219,3]
[329474031,1718382867746,-2215.06,0.00028219,3]
[329474032,1718382867775,-500.0,0.00028219,3]
[329474033,1718382867824,-723.48,0.00028219,3]
[329474034,1718382867876,-1901.93,0.00028219,3]
[329474035,1718382867919,-247.17,0.00028219,3]
[329474036,1718382867976,-1219.21,0.00028219,3]
[329474037,1718382868009,-598.03,0.00028219,3]
[329474038,1718382868044,-854.03,0.00028219,3]
[329474039,1718382868080,-664.58,0.00028219,3]
[329474040,1718382868148,-500.0,0.00028219,3]
[329474041,1718382868182,-854.39,0.00028219,3]
[329474042,1718382868199,-729.5,0.00028219,3]
[329474043,1718382868246,-625.4,0.00028219,3]
[329474044,1718382868261,-636.02,0.00028219,3]
[329474045,1718382868289,-601.31,0.00028219,3]
[329474046,1718382868310,-263.51314721,0.00028219,3]
[329474047,1718382868330,-507.25,0.00028219,3]
[329474048,1718382868343,-666.51,0.00028219,3]
[329474049,1718382868385,-627.2,0.00028219,3]
[329474050,1718382868432,-500.0,0.00028219,3]
[329474051,1718382868473,-782.35,0.00028219,3]
[329474052,1718382868512,-2579.99,0.00028219,3]
[329474053,1718382868565,-500.0,0.00028219,3]
[329474054,1718382868596,-500.0,0.00028219,3]
[329474055,1718382868636,-633.7,0.00028219,3]
[329474056,1718382868653,-500.0,0.00028219,3]
[329474057,1718382868680,-2409.52,0.00028219,3]
[329474058,1718382868700,-500.0,0.00028219,3]
[329474059,1718382868736,-955.12,0.00028219,3]
[329474060,1718382868763,-718.69,0.00028219,3]
[329474061,1718382868780,-545.48,0.00028219,3]
[329474062,1718382868801,-676.49,0.00028219,3]
[329474063,1718382868830,-1205.04,0.00028219,3]
[329474064,1718382868848,-152.05958781,0.00028219,3]
[329474065,1718382868867,-496.5,0.00028219,3]
[329474066,1718382868882,-371.42320115,0.00028219,2]
[329474067,1718382868930,-500.0,0.00028219,3]
[329474068,1718382868973,-2513.5,0.00028219,3]
[329474069,1718382868986,-500.0,0.00028219,3]
[329474070,1718382869002,-500.0,0.00028219,3]
[329474071,1718382869020,-500.0,0.00028219,3]
[329474072,1718382869052,-500.0,0.00028219,3]
[329474073,1718382869077,-719.42,0.00028219,3]
[329474074,1718382869160,-3991.97,0.00028219,3]
[329474075,1718382869179,-3357.78,0.00028219,3]
[329474076,1718382869213,-1455.39,0.00028219,3]
[329474077,1718382869246,-2695.33,0.00028219,3]
[329474078,1718382869286,-587.38,0.00028219,3]
[329474079,1718382869298,-3621.35,0.00028219,3]
[329474080,1718382869316,-505.02,0.00028219,3]
[329474081,1718382869348,-12900.66,0.00028219,3]
[329474082,1718382869396,-2226.1,0.00028219,3]
[329474083,1718382869427,-704.82,0.00028219,3]
[329474084,1718382869457,-1468.02,0.00028219,3]
[329474085,1718382869544,-8041.64378583,0.00028224,2]
[329474086,1718382869631,-151.99268138,0.00028233,2]
[329474087,1718382869798,-170.01053089,0.0002824,2]
[329474088,1718382869814,-673.41541736,0.00028268,2]
[329474089,1718382869832,-371.42320115,0.00028281,2]
[329474090,1718382869849,-1144.0,0.000283,16]
[329474091,1718382869872,-272.80263991,0.00028301,30]
[329474092,1718382869886,-371.42320115,0.00028344,2]
[329474093,1718382869909,-150.0,0.00028373,7]
[329474094,1718382869922,-150.0,0.00028373,7]
[329474095,1718382869958,-2593.42866723,0.00028387,2]
[329474096,1718382870003,-1395.34919464,0.00028405,7]
[329474097,1718382870021,-272.80263991,0.00028411,30]
[329474098,1718382870049,-154.75879082,0.00028439,2]
[329474099,1718382870064,-154.75879082,0.00028454,2]
[329474100,1718382870116,-886.24,0.00028492,3]
[329474101,1718382870135,-826.82,0.00028492,3]
[329474102,1718382870210,-500.0,0.00028493,10]
[329474103,1718382870240,-18733.71463137,0.00028493,2]
[329474104,1718382870284,-480.22770116,0.00028493,3]
[329474105,1718382870299,-354.04382911,0.00028493,3]
[329474106,1718382870362,-647.49,0.00028493,3]
[329474107,1718382870398,-500.0,0.00028493,3]
[329474108,1718382870412,-741.65,0.00028493,3]
[329474109,1718382870431,-1039.58,0.00028493,3]
[329474110,1718382870443,-500.0,0.00028493,3]
[329474111,1718382870454,-606.88,0.00028493,3]
[329474112,1718382870467,-673.4,0.00028493,3]
[329474113,1718382870517,-593.08,0.00028493,3]
[329474114,1718382870540,-669.21,0.00028493,3]
[329474115,1718382870553,-500.0,0.00028493,3]
[329474116,1718382870596,-736.96,0.00028493,3]
[329474117,1718382870611,-507.96,0.00028493,3]
[329474118,1718382870658,-670.88,0.00028493,3]
[329474119,1718382870686,-574.95,0.00028493,3]
[329474120,1718382870758,-500.0,0.00028493,3]
[329474121,1718382870820,-1734.14,0.00028493,3]
[329474122,1718382870888,-639.81665215,0.00028493,3]
[329474123,1718382870913,-500.0,0.00028493,3]
[329474124,1718382870926,-673.58,0.00028493,3]
[329474125,1718382870954,-633.38,0.00028493,3]
[329474126,1718382870980,-1004.01,0.00028493,3]
[329474127,1718382871001,-597.68,0.00028493,3]
[329474128,1718382871072,-733.92,0.00028493,3]
[329474129,1718382871106,-500.0,0.00028493,3]
[329474130,1718382871169,-510.37,0.00028493,3]
[329474131,1718382871219,-500.0,0.00028493,3]
[329474132,1718382871282,-521.38,0.00028493,3]
[329474133,1718382871320,-500.0,0.00028493,3]
[329474134,1718382871347,-500.0,0.00028493,3]
[329474135,1718382871369,-500.0,0.00028493,3]
[329474136,1718382871396,-618.42,0.00028493,3]
[329474137,1718382871420,-448.53578046,0.00028493,3]
[329474138,1718382871461,-500.0,0.00028493,3]
[329474139,1718382871548,-500.0,0.00028493,3]
[329474140,1718382871589,-640.05,0.00028493,3]
[329474141,1718382871602,-590.79,0.00028493,3]
[329474142,1718382871682,-500.0,0.00028493,3]
[329474143,1718382871731,-899.12,0.00028493,3]
[329474144,1718382871749,-619.45,0.00028493,3]
[329474145,1718382871846,-511.68,0.00028493,3]
[329474146,1718382871876,-500.0,0.00028493,3]
[329474147,1718382871903,-501.34,0.00028493,3]
[329474148,1718382871929,-500.0,0.00028493,3]
[329474149,1718382871941,-548.11,0.00028493,3]
[329474150,1718382871961,-763.77,0.00028493,3]
[329474151,1718382871992,-500.0,0.00028493,3]
[329474152,1718382872041,-500.0,0.00028493,3]
[329474153,1718382872073,-512.15,0.00028493,3]
[329474154,1718382872115,-500.0,0.00028493,3]
[329474155,1718382872156,-611.46,0.00028493,3]
[329474156,1718382872174,-573.96,0.00028493,3]
[329474157,1718382872267,-831.61,0.00028493,3]
[329474158,1718382872307,-662.73,0.00028493,3]
[329474159,1718382872330,-579.78541192,0.00028493,3]
[329474160,1718382872347,-500.0,0.00028493,3]
[329474161,1718382872359,-500.0,0.00028493,3]
[329474162,1718382872406,-568.32,0.00028493,3]
[329474163,1718382872424,-697.2,0.00028493,3]
[329474164,1718382872441,-889.26,0.00028493,3]
[329474165,1718382872495,-585.92,0.00028493,3]
[329474166,1718382872556,-510.01,0.00028493,3]
[329474167,1718382872599,-612.61,0.00028493,3]
[329474168,1718382872623,-1011.12,0.00028493,3]
[329474169,1718382872637,-500.0,0.00028493,3]
[329474170,1718382872660,-500.0,0.00028493,3]
[329474171,1718382872684,-717.84,0.00028493,3]
[329474172,1718382872709,-574.18,0.00028493,3]
[329474173,1718382872738,-1073.14,0.00028493,3]
[329474174,1718382872754,-813.3,0.00028493,3]
[329474175,1718382872789,-679.7,0.00028493,3]
[329474176,1718382872854,-589.82,0.00028493,3]
[329474177,1718382872899,-875.23,0.00028493,3]
[329474178,1718382872930,-555.05,0.00028493,7]
[329474179,1718382872962,-617.39,0.00028493,3]
[329474180,1718382872998,-652.05,0.00028493,3]
[329474181,1718382873016,-675.91,0.00028493,3]
[329474182,1718382873054,-627.05,0.00028493,3]
[329474183,1718382873073,-655.54,0.00028493,3]
[329474184,1718382873102,-1343.73,0.00028493,3]
[329474185,1718382873129,-2215.06,0.00028493,3]
[329474186,1718382873147,-577.27057717,0.00028493,3]
[329474187,1718382873188,-723.48,0.00028493,3]
[329474188,1718382873200,-1901.93,0.00028493,3]
[329474189,1718382873213,-247.17,0.00028493,3]
[329474190,1718382873290,-1219.21,0.00028493,3]
[329474191,1718382873304,-598.03,0.00028493,3]
[329474192,1718382873397,-854.03,0.00028493,3]
[329474193,1718382873492,-664.58,0.00028493,3]
[329474194,1718382873505,-500.0,0.00028493,3]
[329474195,1718382873525,-854.39,0.00028493,3]
[329474196,1718382873576,-729.5,0.00028493,3]
[329474197,1718382873608,-625.4,0.00028493,3]
[329474198,1718382873648,-636.02,0.00028493,3]
[329474199,1718382873665,-601.31,0.00028493,3]
[329474200,1718382873703,-507.25,0.00028493,3]
[329474201,1718382873787,-666.51,0.00028493,3]
[329474202,1718382873808,-627.2,0.00028493,3]
[329474203,1718382873821,-500.0,0.00028493,3]
[329474204,1718382873858,-782.35,0.00028493,3]
[329474205,1718382873872,-2579.99,0.00028493,3]
[329474206,1718382873905,-500.0,0.00028493,3]
[329474207,1718382874000,-500.0,0.00028493,3]
[329474208,1718382874047,-633.7,0.00028493,3]
[329474209,1718382874072,-500.0,0.00028493,3]
[329474210,1718382874086,-2409.52,0.00028493,3]
[329474211,1718382874105,-500.0,0.00028493,3]
[329474212,1718382874139,-955.12,0.00028493,3]
[329474213,1718382874174,-718.69,0.00028493,3]
[329474214,1718382874203,-545.48,0.00028493,3]
[329474215,1718382874316,-676.49,0.00028493,3]
[329474216,1718382874430,-1205.04,0.00028493,3]
[329474217,1718382874442,-500.0,0.00028493,3]
[329474218,1718382874480,-2513.5,0.00028493,3]
[329474219,1718382874568,-500.0,0.00028493,3]
[329474220,1718382874580,-190.65939508,0.00028493,3]
[329474221,1718382874600,-500.0,0.00028493,3]
[329474222,1718382874610,-500.0,0.00028493,3]
[329474223,1718382874629,-719.42,0.00028493,3]
[329474224,1718382874640,-3991.97,0.00028493,3]
[329474225,1718382874683,-3357.78,0.00028493,3]
[329474226,1718382874743,-1455.39,0.00028493,3]
[329474227,1718382874755,-2695.33,0.00028493,3]
[329474228,1718382874814,-587.38,0.00028493,3]
[329474229,1718382874855,-3621.35,0.00028493,3]
[329474230,1718382874888,-505.02,0.00028493,3]
[329474231,1718382874907,-12900.66,0.00028493,3]
[329474232,1718382874932,-2226.1,0.00028493,3]
[329474233,1718382874958,-704.82,0.00028493,3]
[329474234,1718382874978,-1468.02,0.00028493,3]
[329474235,1718382874990,-16964.47936382,0.000285,3]
[329474236,1718382875011,-12730.91091576,0.000285,3]
[329474237,1718382875029,-185.67500146,0.000285,120]
[329474238,1718382875062,-272.80263991,0.00028521,30]
[329474239,1718382875115,-150.0,0.00028534,7]
[329474240,1718382875185,-154.29927158,0.0002858,2]
[329474241,1718382875234,-272.14266912,0.00028582,2]
[329474242,1718382875261,-159.60705426,0.00028594,2]
[329474243,1718382875301,-150.0,0.00028598,7]
[329474244,1718382875390,-150.0,0.00028632,7]
[329474245,1718382875414,-272.80263991,0.00028658,30]
[329474246,1718382875457,-8041.64378583,0.00028662,2]
[329474247,1718382875475,-272.14266912,0.00028667,2]
[329474248,1718382875533,-152.4048631,0.00028669,2]
[329474249,1718382875557,-151.99268138,0.00028673,2]
[329474250,1718382875590,-222.0,0.0002868,2]
[329474251,1718382875629,-200.0,0.0002868,2]
[329474252,1718382875656,-202.0,0.0002868,2]
[329474253,1718382875701,-202.0,0.0002868,2]
[329474254,1718382875732,-201.0,0.0002868,2]
[329474255,1718382875747,-221.0,0.0002868,2]
[329474256,1718382875774,-202.0,0.0002868,2]
[329474257,1718382875825,-215.0,0.0002868,2]
[329474258,1718382875860,-5386.75,0.000287,2]
[329474259,1718382875878,-1395.34919464,0.00028704,7]
[329474260,1718382875895,-150.0,0.00028748,7]
[329474261,1718382875926,-886.24,0.00028766,3]
[329474262,1718382875962,-826.82,0.00028766,3]
[329474263,1718382876017,-647.49,0.00028767,3]
[329474264,1718382876039,-500.0,0.00028767,3]
[329474265,1718382876129,-741.65,0.00028767,3]
[329474266,1718382876171,-1039.58,0.00028767,3]
[329474267,1718382876207,-500.0,0.00028767,3]
[329474268,1718382876232,-606.88,0.00028767,3]
[329474269,1718382876256,-673.4,0.00028767,3]
[329474270,1718382876283,-593.08,0.00028767,3]
[329474271,1718382876328,-669.21,0.00028767,3]
[329474272,1718382876367,-736.96,0.00028767,3]
[329474273,1718382876386,-360.621582,0.00028767,3]
[329474274,1718382876435,-507.96,0.00028767,3]
[329474275,1718382876513,-670.88,0.00028767,3]
[329474276,1718382876574,-574.95,0.00028767,3]
[329474278,1718382876636,-500.0,0.00028767,3]